Cogmind - Beta 9.6 @@@ ROGUE MODE // 2020.04.18 @ 19:46:22 Player: MistressMomoko Result: Destroyed by G-34 Mercenary with Small Laser Performance ------------- Evolutions (0) 0 Regions Visited (1) 200 Robots Destroyed (6) 30 Value Destroyed (230) 230 Prototype IDs (0) 0 Alien Tech Used (0) 0 Bonus (0) 0 TOTAL SCORE: 460 Bonus ------- None Cogmind --------- Core Integrity 0/250 Matter 300/300 Energy 95/100 System Corruption 0% Temperature Cool (12) Movement Hovering (76) Location -10/Materials Parts ------- > --- POWER (1) -------- Backup Power I > --- PROPULSION (2) --- Backup Propulsion I Backup Propulsion I > --- UTILITY (2) ------ Small Storage Unit > --- WEAPON (2) ------- Backup Laser I Backup Laser I > --- INVENTORY (6) ---- Light Ion Engine Aluminum Leg Aluminum Leg Compact Wheel High-capacity Storage Unit Particle Gun Peak State ------------ > --- POWER ------------ Light Ion Engine > --- PROPULSION ------- Light Treads Light Treads > --- UTILITY ---------- Small Storage Unit High-capacity Storage Unit > --- WEAPON ----------- EM Pulse Gun Small Laser > --- INVENTORY -------- Light Ion Engine Aluminum Leg Aluminum Leg Compact Wheel Small Laser [Rating: 7] Favorites ----------- Power Light Ion Engine Engine Light Ion Engine Propulsion Light Treads Treads Light Treads Wheel Compact Wheel Hover Unit Backup Propulsion I Utility Small Storage Unit Storage Small Storage Unit Weapon Small Laser Energy Gun Small Laser Special Weapon Mining Laser Build | -11 -10 ------- Run | Scr Mat Slots Evolved . | . . Power . | . . Propulsion . | . . Utility . | . . Weapon . | . . Parts Attached 11 | 5 6 Power 2 | 1 1 Engine 2 | 1 1 Core . | . . Reactor . | . . Propulsion 3 | 1 2 Treads 2 | . 2 Leg . | . . Wheel 1 | 1 . Hover . | . . Flight . | . . Utility 2 | 1 1 Device . | . . Storage 2 | 1 1 Processor . | . . Hackware . | . . Protection . | . . Artifact . | . . Weapon 4 | 2 2 Energy Gun 3 | 2 1 Energy Cannon . | . . Ballistic Gun . | . . Ballistic Cannon . | . . Launcher . | . . Special Weapon 1 | . 1 Impact Weapon . | . . Slashing Weapon . | . . Piercing Weapon . | . . Special Melee Weapon . | . . Unidentified Prototypes . | . . Parts Lost 8 | . 8 Power 2 | . 2 Propulsion 2 | . 2 Utility . | . . Weapon 4 | . 4 Highest Loss Streak 5 | . 5 Average Slot Usage (%) 88 | . 88 Engine 13 | . 13 Treads 19 | . 19 Hover 4 | . 4 Storage 25 | . 25 Energy Gun 22 | . 22 Special Weapon 1 | . 1 Naked Turns . | . . Heaviest Build 43 | 10 43 Greatest Support 40 | 16 40 Greatest Overweight (x) 13 | . 13 Average Overweight (x) . | . . Largest Inventory Capacity 14 | 6 14 Average Capacity 11 | 5 12 Most Carried 7 | 6 7 Average Carried 5 | 2 5 Final Capacity 6 | 6 6 Final Carried 6 | 6 6 Class Distribution -------------------- 100% | Mutant Dominant Class ---------------- Mutant | -10/Materials Resources | -11 -10 ----------- Run | Scr Mat Matter Collected 266 | 180 86 Remotely . | . . Salvage Created 208 | . 208 Parts 8 | . 8 Haulers Intercepted . | . . Recyclers Shooed . | . . Parts Field Recycled . | . . Retrieved Matter . | . . Parts Self-Destructed . | . . Prevented . | . . Kills | -11 -10 ------- Run | Scr Mat Combat Hostiles Destroyed 6 | . 6 Guns 4 | . 4 Cannons 2 | . 2 Classes Destroyed 1 | . 1 Grunt 6 | . 6 Best Kill Streak 2 | . 2 Combat Bots Only 2 | . 2 Max Kills in Single Turn 1 | . 1 Gunslinging . | . . Exploded . | . . Melee . | . . Uniques/NPCs Destroyed . | . . Combat | -11 -10 -------- Run | Scr Mat Damage Taken 1003 | . 1003 Core 254 | . 254 Absorbed by Shields . | . . Core Remaining (%) 100 | 100 . Volleys Fired 21 | . 21 Largest 2 | . 2 Hottest 140 | . 140 Shots Fired 40 | . 40 Gun 35 | . 35 Cannon . | . . Launcher . | . . Special 5 | . 5 Kinetic . | . . Thermal 33 | . 33 Explosive . | . . Electromagnetic 7 | . 7 Robot Hit Streak 11 | . 11 Robot Miss Streak 2 | . 2 Penetration Max . | . . Secondary Targets . | . . Shots Hit Robots 31 | . 31 Core Hits 13 | . 13 Critical Hits . | . . Critical Kills . | . . Critical Parts Destroyed . | . . Melee Attacks . | . . Impact . | . . Slashing . | . . Piercing . | . . Sneak Attacks . | . . Combat Hostiles . | . . Follow-up Attacks . | . . Damage Inflicted 398 | . 398 Guns 285 | . 285 Cannons . | . . Explosions . | . . Melee . | . . Ramming 17 | . 17 Kinetic . | . . Thermal 301 | . 301 Explosive . | . . Electromagnetic 80 | . 80 Impact . | . . Slashing . | . . Piercing . | . . Highest Corruption . | . . Average Corruption . | . . Corruption Purged . | . . Overload Shots . | . . Overflow Damage . | . . Projectiles . | . . Explosions . | . . Melee . | . . Knockbacks . | . . Impact . | . . Kinetic . | . . Secondary . | . . Self-Inflicted Damage 6 | . 6 Shots . | . . Rammed 3 | . 3 Targets Rammed 3 | . 3 Kicked . | . . Crushed . | . . Highest Temperature 296 | . 296 Average Temperature 96 | . 96 Received Heat Transfer 567 | . 567 Siege Activations . | . . Robots Corrupted . | . . Combat Hostiles . | . . Parts Fried . | . . Impact Corruptions . | . . Robots Melted . | . . Combat Hostiles . | . . Parts Melted . | . . Heat Transferred 784 | . 784 Parts Sabotaged . | . . Parts Stolen . | . . Parts Stripped . | . . Power Chain Reactions . | . . Missiles Intercepted . | . . Alert | -11 -10 ------- Run | Scr Mat Peak Influence 101 | . 101 Average Influence 15 | . 17 Maximum Alert Level . | . . Low Security (%) 100 | 100 100 Level 1 . | . . Level 2 . | . . Level 3 . | . . Level 4 . | . . Level 5 . | . . High Security . | . . Max Security . | . . Squads Dispatched 2 | . 2 Investigation . | . . Extermination . | . . Reinforcement 2 | . 2 Assault . | . . Garrison . | . . Intercept . | . . Construction Impeded . | . . Haulers Reinforced . | . . Stealth | -11 -10 --------- Run | Scr Mat Distress Signals 1 | . 1 Communications Jammed . | . . Distress Signals . | . . Times Spotted 14 | . 14 Peak Tracking Total 5 | . 5 Tactical Retreats 2 | . 2 Traps | -11 -10 ------- Run | Scr Mat Traps Triggered . | . . Indirectly . | . . Trap Hack Attempts . | . . Triggered . | . . Disarmed . | . . Reprogrammed . | . . Reused . | . . Traps Extracted . | . . Installed . | . . Triggered . | . . Machines | -11 -10 ---------- Run | Scr Mat Machines Disabled . | . . Max in Single Turn . | . . Machines Sabotaged . | . . Garrisons Compromised . | . . Overloaded Fab Kills . | . . Fab Network Shutdowns . | . . Hacking | -11 -10 --------- Run | Scr Mat Machines Accessed 3 | . 3 Terminals 1 | . 1 Fabricators . | . . Repair Stations 1 | . 1 Recycling Units 1 | . 1 Scanalyzers . | . . Garrison Access . | . . Total Hacks 8 | . 8 Successful 4 | . 4 Failed 4 | . 4 Catastrophic . | . . Database Lockouts . | . . Manual . | . . Terminals 1 | . 1 Fabricators . | . . Repair Stations 3 | . 3 Recycling Units 4 | . 4 Scanalyzers . | . . Garrison Access . | . . Terminal Hacks . | . . Fabricator Hacks . | . . Repair Station Hacks 1 | . 1 Refit 1 | . 1 Recycling Unit Hacks 3 | . 3 Retrieve Components 3 | . 3 Scanalyzer . | . . Garrison Access Hacks . | . . Unauthorized Hacks . | . . Terminals . | . . Fabricators . | . . Repair Stations . | . . Recycling Units . | . . Scanalyzers . | . . Garrison Access . | . . Data Cores Recovered . | . . Used . | . . Hacking Detections 1 | . 1 Full Trace Events 1 | . 1 Feedback Events . | . . Feedback Blocked . | . . Robot Schematics Acquired . | . . Robots Built . | . . Matter . | . . Time . | . . Total Robot Build Rating . | . . Part Schematics Acquired . | . . Parts Built . | . . Matter . | . . Time . | . . Total Part Build Rating . | . . Parts Repaired . | . . Time . | . . Parts Recycled . | . . Recycled Matter . | . . Retrieved Matter . | . . Retrieved Components . | . . Parts Scanalyzed . | . . Part Schematics Acquired . | . . Parts Damaged . | . . Bothacking | -11 -10 ------------ Run | Scr Mat Used RIF Installer . | . . Robots Hacked . | . . Non-combat . | . . Combat . | . . Robot Hacks Applied . | . . Relay Couplers Released . | . . Robots Rewired . | . . Allies Hacked . | . . Hacks Repelled . | . . Allies | -11 -10 -------- Run | Scr Mat Total Allies . | . . Largest Group . | . . Highest-Rated Group . | . . Highest-Rated Ally . | . . Total Orders . | . . Ally Attacks . | . . Total Damage . | . . Kills . | . . Allies Corrupted . | . . Allies Melted . | . . Intel | -11 -10 ------- Run | Scr Mat Robot Analysis Total . | . . Derelict Logs Recovered . | . . Drone Launches . | . . Drone Recoveries . | . . Exploration | -11 -10 ------------- Run | Scr Mat Turns Passed 560 | 60 500 Spaces Moved 268 | 46 222 Core 7 | 1 6 Treads 140 | . 140 Legs . | . . Wheels 60 | 45 15 Hover 61 | . 61 Flight . | . . Fastest Speed 50 | 50 76 Average Speed 148 | 98 158 Slowest Speed 700 | 100 700 Overloaded Moves . | . . Propulsion Burnouts . | . . Robots Hopped . | . . Cave-ins Triggered . | . . Exploration Rate (%) 19 | 3 36 Regions Visited 1 Branch Regions . Pre-discovered Areas . | . . Known Exits Taken . | . . Unknown Exits Taken 1 | 1 . Scrap Searched . | . . Spaces Dug . | . . Terrain Destroyed 1 | . 1 Melee . | . . Projectile 1 | . 1 AOE . | . . Actions | -11 -10 --------- Run | Scr Mat Total 380 | 58 322 Wait 65 | . 65 Move 267 | 45 222 Hop . | . . Pick Up 10 | 7 3 Fast Attach 6 | 5 1 Attach 5 | . 5 Detach 2 | . 2 Swap . | . . Drop 1 | 1 . Fire 21 | . 21 Melee . | . . Ram 2 | . 2 Kick . | . . Crush 1 | . 1 Escape Stasis . | . . Rewire . | . . Trap . | . . Miscellaneous . | . . Route ------- -11/Scrapyard -10/Materials History --------- Turn | Location | Event 20 | -11/Scrapyard | Discovered new exit (range 15) 61 | -11/Scrapyard | Entered Materials 311 | -10/Materials | Build established: Mutant 408 | -10/Materials | Lost 3 parts (1p2w) 433 | -10/Materials | Core integrity fell below 50% 480 | -10/Materials | Core integrity fell below 20% 492 | -10/Materials | Lost 5 parts (1p2n2w) 561 | -10/Materials | Destroyed by G-34 Mercenary with Small Laser Last Messages --------------- 00461_ Ion Engine destroyed. 00461_ K-01 Serf collects debris. 00476_ O-16 Technician: "IFF HANDSHAKE FAILED. SECURING TERMINAL." 00477_ ALERT: Hostiles spotted, dispatching reinforcements to Terminal M002. 00486_ Connecting with Repair Station... >>Refit Scanning configuration... Attaching: Backup Power I x1 Backup Propulsion I x2 Backup Laser I x2 00486_ G-47 Trooper destroyed. 00489_ Acquired 36 matter. 00494_ Acquired Particle Gun. 00506_ Slammed into O-16 Technician. 00507_ Slammed into K-01 Serf. 00529_ W-16 Scout sends out distress signal. 00536_ Terminal unresponsive. 00553_ G-34 Mercenary destroyed. Map ----- +----------------------------------------------------+ | ????????????????????????????????????? | | ????????????????????????????????????? | | ????????????????????????????????????? | | ?#######?????????????????????######## | | ?# ! #?????????????????????# | | ?# #?????????????????????#% """ | | ?# #######????????########%""""" | | ?# # ########## !# """"" | | ?#####+# """ # """ # """ +=""""" | | ?????#%+%"T" + "R" # """ # """ | | ?????# # # " " + """ # | | ????## # # % # # | | ????# # """ # / ############### | | ????# + """ # # # | | ????# # """ # # """"" # | | ????# # # """ + """"" # | | ????# # # """ # """"" # | | ????# # !# """ # # | | ????# # # ######+####+## | | ????# ####### # ## #? | | ????# #?????# =! # """ ## #? | | ????# ####### | # """ ## ## | | ????# # """ # | | ????# # + | | ????# ##g#########+#### """ # | | ????# # =g*@ % #?? ???# """ # # | | ????# # """"" #??????# """ # # | | ????#### """"" #??????# # # | | ???????# """"" #??????##""T""### # | | ???????# #???????#"""""#?##### | | ???????# #???????#######?????? | | ???????# #???????????????????? | | ???????# "T" #???????????????????? | | ???????# """ #???????????????????? | | ???????##########???????????????????? | | ????????????????????????????????????? | | | | | | | | | | | | | | | | | | | | | | | | | | | | | +----------------------------------------------------+ Best States ------------- Heat Dissipation 25 Energy Generation 10 Energy Capacity 250 Matter Stores 300 Matter Capacity 300 Sight Range 16 Terrain Scan Density 10 Evasion (%) 49 Recoil Reduction 2 Item Schematics ----------------- None Robot Schematics ------------------ None Fabricated ------------ Nothing Alien Tech Used ----------------- None Achievements -------------- None Challenges ------------ None Game ------ Seed RiotActuatorRegenerator Manual? 0 Play Time 00:08:27 Cumulative 6.7 hours Start 2020.04.18 @ 19:38:55 End 2020.04.18 @ 19:46:22 Sessions 1 Manual Loads 0 Difficulty Rogue Special Mode None Game No. 25 Rogue 25 Adventurer 0 Explorer 0 Win Type - Total 0 Types 0/0/0/0/0/0/0 Lore% 12 Gallery% 17 Achievement% 15 Wizard Run 0 Options --------- ASCII 1 Keyboard 1 Movement Numpad Keybinds 0 Fullscreen 1 Font 18/X11Bold Map View 76x50 Tactical HUD 1 Map Filters NONE Filters NONE Steam 1 RUN: 8c574a32-7356-4c63-a8b7-442995384ce7